[Event "3rd BSSZ-Aranytiz GM 2019"]
[Site "Budapest"]
[Date "2019.08.16"]
[Round "1.1"]
[White "Akshat, Khamparia"]
[Black "Martinovici, Ilie"]
[Result "1/2-1/2"]
[ECO "E25"]
[WhiteElo "2393"]
[BlackElo "2405"]
[Annotator "NA"]
[PlyCount "118"]
[EventDate "2019.08.16"]
[EventType "tourn"]
[EventCountry "HUN"]
[SourceTitle "playchess.com"]
[Source "ChessBase"]
[SourceQuality "1"]
[TimeControl "40/5400+30:1800+30"]

1. d4 Nf6 2. c4 e6 3. Nc3 Bb4 4. f3 d5 5. a3 Bxc3+ 6. bxc3 c5 7. cxd5 exd5 8. e3 Bf5 9. Ne2 Nc6 10. Ng3 Bg6 11. Bd3 O-O 12. O-O Re8 13. Re1 Qd7 14. Ra2 Rac8 15. Rae2 Na5 16. Bb2 cxd4 17. cxd4 Nc4 18. Bc1 b5 19. Nf1 Nd6 20. Bxg6 hxg6 21. Nd2 Nc4 22. Nb3 Qe7 23. e4 dxe4 24. fxe4 Nd7 25. d5 Nde5 26. Ra2 Nd6 27. a4 b4 28. Rae2 Qd7 29. Nd4 Rc3 30. Bb2 Rd3 31. Qb1 Qg4 32. Kh1 Ndc4 33. Ba1 Ra3 34. Qxb4 Nd3 35. Qxc4 Nxe1 36. Rxe1 Rxe4 37. Rg1 Qh5 38. Qc8+ Kh7 39. Bb2 Rd3 40. d6 Rh4 41. h3 f5 42. Qc2 Rdxh3+ 43. gxh3 Rxh3+ 44. Kg2 Rh2+ 45. Kf1 Rxc2 46. Nxc2 Qd1+ 47. Ne1 Qxd6 48. Rg2 Qf4+ 49. Rf2 Qxa4 50. Nf3 Qb4 51. Be5 Qc4+ 52. Re2 Qg4 53. Rh2+ Kg8 54. Kf2 Qe4 55. Rh4 Qc2+ 56. Kg3 Qb3 57. Kf2 Qc2+ 58. Kg3 Qe2 59. Rb4 g5 1/2-1/2

[Event "3rd BSSZ-Aranytiz GM 2019"]
[Site "Budapest"]
[Date "2019.08.16"]
[Round "1.2"]
[White "Csonka, Balazs"]
[Black "Farago, Ivan"]
[Result "1-0"]
[ECO "C18"]
[WhiteElo "2472"]
[BlackElo "2350"]
[Annotator "ChessBase"]
[PlyCount "75"]
[EventDate "2019.08.16"]
[EventType "tourn"]
[EventCountry "HUN"]
[SourceTitle "playchess.com"]
[Source "ChessBase"]
[SourceQuality "1"]
[TimeControl "40/5400+30:1800+30"]

1. e4 e6 2. d4 d5 3. Nc3 Bb4 4. e5 c5 5. a3 Bxc3+ 6. bxc3 Qa5 7. Bd2 Qa4 8. Qg4 Kf8 9. Nf3 Nc6 10. Be2 Qxc2 11. dxc5 Qe4 12. Qxe4 dxe4 13. Ng5 f5 14. exf6 Nxf6 15. f3 exf3 16. Bxf3 h6 17. Ne4 Ne5 18. O-O Ke7 19. Nxf6 Nxf3+ 20. Rxf3 gxf6 21. Raf1 f5 22. Re1 Kf7 23. Rd3 Ke8 24. Rb1 Rh7 25. Bf4 h5 26. Rg3 e5 27. Bxe5 Be6 28. Rg6 Bd5 29. Rf1 Ke7 30. Rd1 Bc6 31. Rdd6 Re8 32. Bf4 Kf8 33. Bh6+ Kf7 34. Rdf6+ Ke7 35. Rd6 Kf7 36. Kf2 Rg8 37. Rdf6+ Ke7 38. Re6+ 1-0

[Event "3rd BSSZ-Aranytiz GM 2019"]
[Site "Budapest"]
[Date "2019.08.16"]
[Round "1.3"]
[White "Horvath, Adam"]
[Black "Polyik, Peter"]
[Result "0-1"]
[ECO "B42"]
[WhiteElo "2517"]
[BlackElo "2328"]
[Annotator "ChessBase"]
[PlyCount "66"]
[EventDate "2019.08.16"]
[EventType "tourn"]
[EventCountry "HUN"]
[SourceTitle "playchess.com"]
[Source "ChessBase"]
[SourceQuality "1"]
[TimeControl "40/5400+30:1800+30"]

1. e4 c5 2. Nf3 e6 3. d4 cxd4 4. Nxd4 a6 5. Bd3 Ne7 6. O-O Nbc6 7. c3 d5 8. Re1 dxe4 9. Bxe4 Nxd4 10. cxd4 Nd5 11. Nc3 Nf6 12. d5 Be7 13. Bf4 exd5 14. Nxd5 Nxd5 15. Bxd5 O-O 16. Qb3 Bc5 17. Rad1 Qf6 18. Qg3 a5 19. h4 Ra6 20. h5 Rb6 21. Be5 Qh6 22. Bc3 Bb4 23. Qc7 Bd6 24. Bxf7+ Kh8 25. Qc4 Rc6 26. Qd4 Bc5 27. Qd8 Qf4 28. Re8 Qxf2+ 29. Kh1 Qxf7 30. Rxf8+ Bxf8 31. Kg1 Qe7 32. Bxa5 Qc5+ 33. Rd4 Qxd4+ 0-1

[Event "3rd BSSZ-Aranytiz GM 2019"]
[Site "Budapest"]
[Date "2019.08.16"]
[Round "1.4"]
[White "Horvath, Dominik"]
[Black "Secheres, Adrian-Simion"]
[Result "1-0"]
[ECO "E94"]
[WhiteElo "2425"]
[BlackElo "2394"]
[Annotator "NA"]
[PlyCount "95"]
[EventDate "2019.08.16"]
[EventType "tourn"]
[EventCountry "HUN"]
[SourceTitle "playchess.com"]
[Source "ChessBase"]
[SourceQuality "1"]
[TimeControl "40/5400+30:1800+30"]

1. c4 {[%emt 0:02:48]} g6 2. e4 Bg7 3. d4 d6 4. Nc3 Nf6 5. Nf3 O-O 6. Be2 e5 7. O-O exd4 8. Nxd4 Re8 9. f3 c6 10. Bf4 Nh5 11. Be3 f5 12. Qd2 f4 13. Bf2 Be5 14. Rfd1 Qf6 15. Rac1 Nd7 16. b4 Nf8 17. Nb3 Be6 18. Bd4 Bf7 19. Na5 Qe7 20. Bxe5 dxe5 21. Qd6 a6 22. c5 Ng7 23. Bc4 Bxc4 24. Qxe7 Rxe7 25. Nxc4 Rc8 26. Na4 Rcc7 27. Rd8 Nge6 28. Rb8 Nd4 29. Rd1 Kg7 30. Nxe5 Nd7 31. Rd8 Nxe5 32. R1xd4 g5 33. Nb6 g4 34. Kf2 Re6 35. R4d6 Rg6 36. Re8 Rg5 37. Rdd8 gxf3 38. Rg8+ Kh6 39. Rxg5 Kxg5 40. gxf3 Rg7 41. Rd6 Kh4 42. a3 h5 43. Rf6 Kh3 44. Rf5 Ng6 45. Rg5 h4 46. Kg1 a5 47. bxa5 Rg8 48. Nc4 1-0

[Event "3rd BSSZ-Aranytiz GM 2019"]
[Site "Budapest"]
[Date "2019.08.16"]
[Round "1.5"]
[White "Aczel, Gergely"]
[Black "Kozak, Adam"]
[Result "1-0"]
[ECO "A04"]
[WhiteElo "2538"]
[BlackElo "2495"]
[Annotator "ChessBase"]
[PlyCount "83"]
[EventDate "2019.08.16"]
[EventType "tourn"]
[EventCountry "HUN"]
[SourceTitle "playchess.com"]
[Source "ChessBase"]
[SourceQuality "1"]
[TimeControl "40/5400+30:1800+30"]

1. Nf3 c5 2. g3 Nc6 3. c4 e5 4. Nc3 g6 5. Bg2 Bg7 6. O-O Nge7 7. d3 O-O 8. Ne1 d6 9. Nc2 Be6 10. Ne3 Rb8 11. b3 a6 12. Bb2 b5 13. Ncd5 f5 14. f4 Kh8 15. Qd2 Nd4 16. Rae1 Re8 17. Nd1 Qd7 18. e3 Ndc6 19. N1c3 Bg8 20. Kh1 Nxd5 21. cxd5 Nd8 22. e4 exf4 23. gxf4 Nf7 24. Ne2 Nh6 25. Ng3 c4 26. Bxg7+ Qxg7 27. e5 dxe5 28. fxe5 cxd3 29. e6 Rbd8 30. h3 Rd6 31. Qf4 Rdd8 32. Qg5 Rd6 33. Rd1 Red8 34. Rfe1 d2 35. Rxd2 a5 36. Kh2 Rf8 37. Qf4 Ra6 38. e7 Re8 39. d6 g5 40. Qd4 f4 41. Qxg7+ Kxg7 42. Nh5+ 1-0

[Event "3rd BSSZ-Aranytiz GM 2019"]
[Site "Budapest"]
[Date "2019.08.17"]
[Round "2.1"]
[White "Martinovici, Ilie"]
[Black "Kozak, Adam"]
[Result "0-1"]
[ECO "A40"]
[WhiteElo "2405"]
[BlackElo "2495"]
[Annotator "ChessBase"]
[PlyCount "104"]
[EventDate "2019.08.16"]
[EventType "tourn"]
[EventCountry "HUN"]
[SourceTitle "playchess.com"]
[Source "ChessBase"]
[SourceQuality "1"]
[TimeControl "40/5400+30:1800+30"]

1. d4 {[%emt 0:04:38]} Nf6 {[%emt 0:00:00]} 2. c4 {[%emt 0:00:07]} e6 3. g3 {[%emt 0:00:05]} Bb4+ {[%emt 0:00:41]} 4. Nd2 {[%emt 0:00:07]} c5 {[%emt 0:00:12]} 5. a3 {[%emt 0:00:30]} Bxd2+ {[%emt 0:00:07]} 6. Qxd2 {[%emt 0:00:15]} cxd4 {[%emt 0:00:13]} 7. Nf3 {[%emt 0:04:57]} b6 {[%emt 0:04:03]} 8. Bg2 {[%emt 0:01:23]} Bb7 9. Qxd4 {[%emt 0:00:06]} Nc6 {[%emt 0:01:09]} 10. Qd1 {[%emt 0:00:52]} Ne5 11. Qd4 {[%emt 0:00:04]} Nc6 {[%emt 0:07:10]} 12. Qd1 {[%emt 0:00:04]} Ne5 {[%emt 0:00:08]} 13. Qd4 {[%emt 0:00:11]} Nc6 {[%emt 0:16:37]} 14. Qd1 {[%emt 0:04:24]} Na5 {[%emt 0:03:23]} 15. b3 {[%emt 0:10:36]} d5 16. Bd2 {[%emt 0:00:04]} dxc4 {[%emt 0:02:07]} 17. Bxa5 {[%emt 0:01:13]} Qxd1+ {[%emt 0:01:38]} 18. Rxd1 {[%emt 0:00:30]} bxa5 {[%emt 0:00:30]} 19. bxc4 {[%emt 0:02:12]} Rc8 {[%emt 0:03:04]} 20. Rc1 {[%emt 0:00:30]} Ke7 {[%emt 0:02:14]} 21. O-O {[%emt 0:02:54]} Bxf3 {[%emt 0:00:34]} 22. Bxf3 {[%emt 0:00:30]} Rc5 {[%emt 0:00:06]} 23. Rb1 {[%emt 0:02:37]} Rhc8 {[%emt 0:00:01]} 24. Rb7+ {[%emt 0:00:30]} R8c7 {[%emt 0:00:30]} 25. Rfb1 {[%emt 0:01:35]} Rxc4 26. Rxc7+ {[%emt 0:00:30]} Rxc7 {[%emt 0:02:11]} 27. Rb5 {[%emt 0:00:01]} Nd7 {[%emt 0:04:15]} 28. Rxa5 {[%emt 0:00:00]} Nc5 {[%emt 0:00:29]} 29. Rb5 {[%emt 0:17:24]} Kd6 {[%emt 0:06:53]} 30. Rb1 {[%emt 0:00:30]} Nd7 {[%emt 0:05:04]} 31. Be4 {[%emt 0:15:27]} h6 {[%emt 0:00:30]} 32. Rd1+ {[%emt 0:00:30]} Ke5 {[%emt 0:00:30]} 33. Bc6 {[%emt 0:08:17]} Nb6 {[%emt 0:04:37]} 34. f4+ {[%emt 0:00:35]} Kf6 {[%emt 0:00:58]} 35. Bb5 {[%emt 0:01:29]} g5 {[%emt 0:09:03]} 36. fxg5+ {[%emt 0:02:47]} hxg5 {[%emt 0:00:30]} 37. h4 {[%emt 0:00:30]} gxh4 {[%emt 0:02:13]} 38. gxh4 {[%emt 0:00:06]} Nd5 {[%emt 0:00:58]} 39. Rd3 {[%emt 0:00:00]} Ke5 {[%emt 0:00:00]} 40. Rf3 {[%emt 0:00:00]} f5 {[%emt 0:00:00]} 41. Kf2 {[%emt 0:24:31]} f4 {[%emt 0:21:08]} 42. Rh3 Rc1 43. Kg2 {[%emt 0:02:12]} Ne3+ {[%emt 0:16:51]} 44. Kh2 {[%emt 0:06:26]} Kf5 {[%emt 0:04:55]} 45. Bd3+ {[%emt 0:05:51]} Kg4 46. h5 {[%emt 0:00:06]} Kg5 {[%emt 0:01:43]} 47. h6 Ng4+ {[%emt 0:00:46]} 48. Kg2 {[%emt 0:00:33]} Nxh6 {[%emt 0:03:04]} 49. Kf3 {[%emt 0:02:30]} Rg1 {[%emt 0:00:25]} 50. Ke4 {[%emt 0:00:30]} Rg3 {[%emt 0:00:15]} 51. Rh1 {[%emt 0:01:47]} Nf5 {[%emt 0:00:08]} 52. Ke5 {[%emt 0:00:32]} Re3+ {[%emt 0:00:30]} 0-1

[Event "3rd BSSZ-Aranytiz GM 2019"]
[Site "Budapest"]
[Date "2019.08.17"]
[Round "2.2"]
[White "Secheres, Adrian-Simion"]
[Black "Aczel, Gergely"]
[Result "1/2-1/2"]
[ECO "E12"]
[WhiteElo "2394"]
[BlackElo "2538"]
[Annotator "ChessBase"]
[PlyCount "94"]
[EventDate "2019.08.16"]
[EventType "tourn"]
[EventCountry "HUN"]
[SourceTitle "playchess.com"]
[Source "ChessBase"]
[SourceQuality "1"]
[TimeControl "40/5400+30:1800+30"]

1. d4 {[%emt 0:04:27]} Nf6 {[%emt 0:00:06]} 2. c4 {[%emt 0:00:11]} e6 {[%emt 0:00:03]} 3. Nf3 {[%emt 0:00:11]} b6 {[%emt 0:02:16]} 4. Bf4 {[%emt 0:00:07]} Bb7 {[%emt 0:00:54]} 5. e3 {[%emt 0:00:09]} d5 {[%emt 0:12:17]} 6. Nc3 {[%emt 0:00:45]} Nbd7 {[%emt 0:10:23]} 7. Rc1 {[%emt 0:02:05]} Bb4 {[%emt 0:03:01]} 8. a3 {[%emt 0:01:26]} Bxc3+ {[%emt 0:00:04]} 9. Rxc3 {[%emt 0:00:07]} c5 {[%emt 0:01:20]} 10. Be2 {[%emt 0:06:10]} O-O {[%emt 0:10:26]} 11. O-O {[%emt 0:02:31]} Ne4 {[%emt 0:03:06]} 12. Rc1 {[%emt 0:04:23]} g5 {[%emt 0:00:16]} 13. Bg3 {[%emt 0:01:40]} Qe7 {[%emt 0:09:49]} 14. dxc5 {[%emt 0:07:15]} Nxg3 {[%emt 0:04:39]} 15. hxg3 {[%emt 0:00:19]} Nxc5 {[%emt 0:00:03]} 16. b4 {[%emt 0:09:17]} Ne4 {[%emt 0:00:14]} 17. cxd5 {[%emt 0:05:59]} Bxd5 {[%emt 0:00:33]} 18. Qc2 {[%emt 0:06:41]} a5 {[%emt 0:02:32]} 19. Bd3 {[%emt 0:02:25]} Qb7 {[%emt 0:14:40]} 20. Qb2 {[%emt 0:06:58]} axb4 {[%emt 0:01:06]} 21. axb4 {[%emt 0:00:22]} f6 {[%emt 0:13:51]} 22. Ra1 {[%emt 0:04:44]} e5 {[%emt 0:00:47]} 23. Rfc1 {[%emt 0:02:39]} Rxa1 {[%emt 0:00:46]} 24. Rxa1 {[%emt 0:00:09]} Ra8 {[%emt 0:00:08]} 25. Rxa8+ {[%emt 0:04:53]} Qxa8 {[%emt 0:00:03]} 26. Qc2 {[%emt 0:03:26]} Qc6 {[%emt 0:02:14]} 27. Qxc6 {[%emt 0:02:41]} Bxc6 {[%emt 0:00:01]} 28. Bxe4 {[%emt 0:00:43]} Bxe4 {[%emt 0:00:01]} 29. Nd2 {[%emt 0:01:02]} Bd3 {[%emt 0:00:52]} 30. e4 {[%emt 0:01:55]} Kf7 {[%emt 0:03:01]} 31. f3 {[%emt 0:00:40]} Ke6 {[%emt 0:00:49]} 32. Kf2 {[%emt 0:01:13]} Kd6 {[%emt 0:03:04]} 33. Ke3 {[%emt 0:00:32]} Bc2 {[%emt 0:01:29]} 34. Nf1 {[%emt 0:01:06]} h5 {[%emt 0:00:50]} 35. Kd2 {[%emt 0:01:00]} Bb3 {[%emt 0:00:02]} 36. Ne3 {[%emt 0:00:56]} Be6 {[%emt 0:00:02]} 37. Nd1 {[%emt 0:02:54]} Bc4 {[%emt 0:00:54]} 38. Ke3 {[%emt 0:02:46]} Bf1 {[%emt 0:00:57]} 39. Kf2 {[%emt 0:00:13]} Bc4 {[%emt 0:00:12]} 40. Nc3 {[%emt 0:00:00]} Be6 {[%emt 0:00:00]} 41. Ke3 {[%emt 0:02:13]} Kc6 {[%emt 0:00:47]} 42. Kf2 {[%emt 0:00:23]} f5 {[%emt 0:14:21]} 43. exf5 {[%emt 0:04:15]} Bxf5 {[%emt 0:00:01]} 44. Ke3 {[%emt 0:00:16]} Bg6 {[%emt 0:02:34]} 45. f4 {[%emt 0:04:04]} gxf4+ {[%emt 0:04:29]} 46. gxf4 {[%emt 0:00:07]} Kd6 {[%emt 0:00:13]} 47. Na4 {[%emt 0:05:09]} Kc6 {[%emt 0:00:35]} 1/2-1/2

[Event "3rd BSSZ-Aranytiz GM 2019"]
[Site "Budapest"]
[Date "2019.08.17"]
[Round "2.3"]
[White "Polyik, Peter"]
[Black "Horvath, Dominik"]
[Result "1/2-1/2"]
[ECO "A46"]
[WhiteElo "2328"]
[BlackElo "2425"]
[Annotator "NA"]
[PlyCount "88"]
[EventDate "2019.08.16"]
[EventType "tourn"]
[EventCountry "HUN"]
[SourceTitle "playchess.com"]
[Source "ChessBase"]
[SourceQuality "1"]
[TimeControl "40/5400+30:1800+30"]

1. d4 {[%emt 0:00:04]} Nf6 {[%emt 0:00:00]} 2. Nf3 {[%emt 0:00:26]} d5 3. c4 {[%emt 0:00:06]} e6 {[%emt 0:00:31]} 4. g3 {[%emt 0:00:00]} Bb4+ {[%emt 0:00:03]} 5. Bd2 {[%emt 0:00:00]} Be7 {[%emt 0:00:22]} 6. Bg2 {[%emt 0:01:21]} c6 {[%emt 0:00:29]} 7. Qc2 {[%emt 0:00:37]} Nbd7 {[%emt 0:00:05]} 8. O-O {[%emt 0:09:29]} b6 {[%emt 0:00:21]} 9. Rd1 {[%emt 0:02:15]} Ba6 {[%emt 0:10:29]} 10. Ne5 {[%emt 0:00:06]} Nxe5 {[%emt 0:01:18]} 11. dxe5 {[%emt 0:01:05]} Nd7 {[%emt 0:00:00]} 12. cxd5 {[%emt 0:05:28]} cxd5 {[%emt 0:06:21]} 13. Bc3 {[%emt 0:06:10]} Qc7 {[%emt 0:00:30]} 14. Qd2 {[%emt 0:05:33]} Rd8 {[%emt 0:14:28]} 15. f4 {[%emt 0:00:30]} O-O {[%emt 0:00:30]} 16. Bd4 {[%emt 0:00:30]} b5 {[%emt 0:00:30]} 17. Qe3 {[%emt 0:00:30]} Bc5 {[%emt 0:39:07]} 18. Nd2 {[%emt 0:20:07]} b4 {[%emt 0:00:30]} 19. Nb3 {[%emt 0:00:30]} Bxd4 {[%emt 0:00:30]} 20. Nxd4 {[%emt 0:00:30]} Qb6 {[%emt 0:00:30]} 21. Kf2 {[%emt 0:00:30]} Nc5 {[%emt 0:00:30]} 22. Nb3 {[%emt 0:00:30]} Rc8 {[%emt 0:07:06]} 23. Rac1 {[%emt 0:38:41]} Na4 {[%emt 0:00:30]} 24. Qxb6 {[%emt 0:00:21]} axb6 {[%emt 0:00:01]} 25. Rxc8 {[%emt 0:00:30]} Rxc8 {[%emt 0:09:29]} 26. Nd4 {[%emt 0:02:29]} Rc5 {[%emt 0:00:30]} 27. Rd2 {[%emt 0:00:30]} Rc8 {[%emt 0:04:43]} 28. e4 {[%emt 0:01:18]} dxe4 {[%emt 0:00:36]} 29. Nc6 {[%emt 0:02:23]} Kf8 {[%emt 0:00:30]} 30. Nxb4 {[%emt 0:00:30]} Bb7 {[%emt 0:00:30]} 31. Ke3 {[%emt 0:00:30]} Rc1 {[%emt 0:00:30]} 32. Rd7 {[%emt 0:00:30]} Nc5 {[%emt 0:00:30]} 33. Rd6 {[%emt 0:00:30]} Re1+ {[%emt 0:00:12]} 34. Kf2 {[%emt 0:01:46]} Rb1 {[%emt 0:00:30]} 35. Rd2 {[%emt 0:00:30]} f5 {[%emt 0:00:30]} 36. exf6 {[%emt 0:00:30]} gxf6 {[%emt 0:01:58]} 37. g4 {[%emt 0:00:37]} Ke7 {[%emt 0:01:21]} 38. Ke3 {[%emt 0:00:33]} f5 {[%emt 0:00:30]} 39. gxf5 {[%emt 0:00:00]} exf5 {[%emt 0:00:00]} 40. Bh3 {[%emt 0:00:00]} Ke6 {[%emt 0:00:00]} 41. Nc2 {[%emt 0:07:36]} Nd3 {[%emt 0:03:37]} 42. Rg2 {[%emt 0:11:11]} Rf1 {[%emt 0:07:27]} 43. Nd4+ {[%emt 0:05:02]} Kf6 {[%emt 0:12:41]} 44. Rg5 {[%emt 0:02:29]} Rxf4 1/2-1/2

[Event "3rd BSSZ-Aranytiz GM 2019"]
[Site "Budapest"]
[Date "2019.08.17"]
[Round "2.4"]
[White "Farago, Ivan"]
[Black "Horvath, Adam"]
[Result "1-0"]
[ECO "D37"]
[WhiteElo "2350"]
[BlackElo "2517"]
[Annotator "ChessBase"]
[PlyCount "59"]
[EventDate "2019.08.16"]
[EventType "tourn"]
[EventCountry "HUN"]
[SourceTitle "playchess.com"]
[Source "ChessBase"]
[SourceQuality "1"]
[TimeControl "40/5400+30:1800+30"]

1. d4 {[%emt 0:00:02]} Nf6 {[%emt 0:08:05]} 2. c4 {[%emt 0:00:17]} e6 {[%emt 0:00:14]} 3. Nf3 {[%emt 0:00:23]} d5 {[%emt 0:00:15]} 4. Nc3 {[%emt 0:00:29]} dxc4 {[%emt 0:00:16]} 5. e3 {[%emt 0:00:40]} a6 {[%emt 0:00:09]} 6. Bxc4 {[%emt 0:00:25]} b5 {[%emt 0:01:04]} 7. Bd3 {[%emt 0:01:43]} Bb7 {[%emt 0:00:08]} 8. Qe2 {[%emt 0:06:50]} c5 {[%emt 0:15:50]} 9. dxc5 {[%emt 0:02:40]} Nc6 {[%emt 0:00:12]} 10. O-O {[%emt 0:02:00]} Bxc5 {[%emt 0:00:49]} 11. a3 {[%emt 0:05:31]} Qc7 {[%emt 0:12:30]} 12. b4 {[%emt 0:06:57]} Bd6 {[%emt 0:00:24]} 13. Bb2 {[%emt 0:00:33]} Ng4 {[%emt 0:06:29]} 14. h3 {[%emt 0:04:47]} Nge5 {[%emt 0:00:04]} 15. Nxe5 {[%emt 0:01:38]} Nxe5 {[%emt 0:00:41]} 16. Rac1 {[%emt 0:11:54]} Nxd3 {[%emt 0:03:06]} 17. Qxd3 {[%emt 0:00:52]} Rd8 {[%emt 0:00:05]} 18. Qe2 {[%emt 0:05:48]} Qe7 {[%emt 0:15:57]} 19. a4 {[%emt 0:00:38]} bxa4 {[%emt 0:08:31]} 20. Nxa4 {[%emt 0:04:33]} Bxb4 {[%emt 0:00:04]} 21. Rc4 {[%emt 0:14:01]} h5 {[%emt 0:05:43]} 22. Rd1 {[%emt 0:05:07]} a5 {[%emt 0:04:38]} 23. Rxd8+ {[%emt 0:04:46]} Qxd8 {[%emt 0:00:06]} 24. Nc5 {[%emt 0:02:15]} Bxg2 {[%emt 0:14:55]} 25. Kxg2 {[%emt 0:08:14]} Qg5+ {[%emt 0:00:04]} 26. Kf1 {[%emt 0:00:28]} Bxc5 {[%emt 0:00:30]} 27. Qc2 {[%emt 0:00:39]} Qd5 {[%emt 0:02:08]} 28. Rxc5 {[%emt 0:00:21]} Qh1+ {[%emt 0:00:04]} 29. Ke2 {[%emt 0:00:09]} O-O {[%emt 0:00:04]} 30. Rxh5 {[%emt 0:01:52]} 1-0

[Event "3rd BSSZ-Aranytiz GM 2019"]
[Site "Budapest"]
[Date "2019.08.17"]
[Round "2.5"]
[White "Akshat, Khamparia"]
[Black "Csonka, Balazs"]
[Result "1-0"]
[ECO "D84"]
[WhiteElo "2393"]
[BlackElo "2472"]
[Annotator "ChessBase"]
[PlyCount "118"]
[EventDate "2019.08.16"]
[EventType "tourn"]
[EventCountry "HUN"]
[SourceTitle "playchess.com"]
[Source "ChessBase"]
[SourceQuality "1"]
[TimeControl "40/5400+30:1800+30"]

1. d4 {[%emt 0:04:27]} Nf6 {[%emt 0:00:00]} 2. c4 {[%emt 0:00:00]} g6 {[%emt 0:00:00]} 3. Nc3 {[%emt 0:00:56]} d5 {[%emt 0:00:16]} 4. Bf4 {[%emt 0:00:07]} Bg7 {[%emt 0:00:44]} 5. e3 {[%emt 0:00:07]} O-O 6. cxd5 {[%emt 0:00:07]} Nxd5 {[%emt 0:00:38]} 7. Nxd5 Qxd5 {[%emt 0:00:05]} 8. Bxc7 {[%emt 0:00:36]} Na6 {[%emt 0:00:06]} 9. Bxa6 {[%emt 0:00:14]} Qxg2 10. Qf3 {[%emt 0:00:02]} Qxf3 {[%emt 0:00:18]} 11. Nxf3 {[%emt 0:00:06]} bxa6 {[%emt 0:09:45]} 12. Rc1 {[%emt 0:13:33]} a5 {[%emt 0:06:05]} 13. Rg1 {[%emt 0:07:00]} a4 14. Rc5 Bd7 15. Kd2 Rfc8 16. Rgc1 a6 17. Ne5 Bxe5 18. Bxe5 Rxc5 19. Rxc5 Rc8 20. Kc3 f6 21. Bc7 Kf7 22. Kb4 Bb5 23. Ka5 g5 24. Kb6 h5 25. Kb7 Re8 26. d5 Kg6 27. Ba5 g4 28. Rc7 Rd8 29. e4 Rd7 30. Rxd7 Bxd7 31. Kxa6 Kf7 32. b3 axb3 33. axb3 h4 34. Bd2 g3 35. fxg3 hxg3 36. hxg3 Bh3 37. e5 Bg2 38. d6 exd6 39. exd6 Ke6 40. Bf4 Kd7 41. b4 Bf3 42. Kb6 Bg2 43. Kc5 Bf3 44. Bd2 Ke6 45. Bc3 f5 46. Bd2 Bg2 47. Bf4 Kd7 48. Kd4 Ke6 49. b5 Bf1 50. Kc5 Kd7 51. Bd2 Be2 52. Bb4 Bf1 53. b6 Bg2 54. Kd4 Ke6 55. Ke3 Bc6 56. Kf4 Bb7 57. Bc5 Bc8 58. Ba3 Bb7 59. Bb4 Bc8 1-0

[Event "3rd BSSZ-Aranytiz GM 2019"]
[Site "Budapest"]
[Date "2019.08.18"]
[Round "3.1"]
[White "Csonka, Balazs"]
[Black "Martinovici, Ilie"]
[Result "1-0"]
[ECO "C50"]
[WhiteElo "2472"]
[BlackElo "2405"]
[Annotator "ChessBase"]
[PlyCount "49"]
[EventDate "2019.08.16"]
[EventType "tourn"]
[EventCountry "HUN"]
[SourceTitle "playchess.com"]
[Source "ChessBase"]
[SourceQuality "1"]
[TimeControl "40/5400+30:1800+30"]

1. e4 {[%emt 0:00:04]} e5 {[%emt 0:00:58]} 2. Nf3 {[%emt 0:00:08]} Nc6 {[%emt 0:00:04]} 3. Bc4 {[%emt 0:00:07]} Bc5 {[%emt 0:00:03]} 4. O-O {[%emt 0:00:10]} Nf6 {[%emt 0:00:04]} 5. d3 {[%emt 0:00:06]} d6 {[%emt 0:01:03]} 6. c3 {[%emt 0:01:29]} a6 {[%emt 0:00:08]} 7. Bb3 {[%emt 0:03:57]} Ba7 {[%emt 0:00:22]} 8. Re1 {[%emt 0:00:51]} h6 {[%emt 0:01:41]} 9. Nbd2 {[%emt 0:01:28]} Ng4 {[%emt 0:02:16]} 10. Re2 {[%emt 0:01:57]} O-O {[%emt 0:00:14]} 11. h3 {[%emt 0:07:27]} Nf6 {[%emt 0:00:04]} 12. Nf1 {[%emt 0:04:42]} Be6 {[%emt 0:00:06]} 13. Re1 {[%emt 0:05:35]} d5 {[%emt 0:01:16]} 14. exd5 {[%emt 0:00:39]} Nxd5 {[%emt 0:00:13]} 15. N1h2 {[%emt 0:15:48]} Qd6 {[%emt 0:13:52]} 16. Ng4 {[%emt 0:00:31]} Bxg4 {[%emt 0:01:21]} 17. hxg4 {[%emt 0:00:02]} Rad8 {[%emt 0:02:21]} 18. Nh4 {[%emt 0:00:21]} Qf6 {[%emt 0:05:15]} 19. Nf5 {[%emt 0:03:18]} Nf4 {[%emt 0:01:31]} 20. d4 {[%emt 0:11:56]} Ng6 {[%emt 0:18:20]} 21. Qf3 {[%emt 0:10:07]} Kh7 {[%emt 0:11:18]} 22. g5 {[%emt 0:05:16]} hxg5 {[%emt 0:00:08]} 23. Qh5+ {[%emt 0:00:10]} Kg8 {[%emt 0:00:05]} 24. Bc2 {[%emt 0:00:09]} e4 {[%emt 0:01:25]} 25. Bxe4 {[%emt 0:01:53]} 1-0

[Event "3rd BSSZ-Aranytiz GM 2019"]
[Site "Budapest"]
[Date "2019.08.18"]
[Round "3.2"]
[White "Horvath, Adam"]
[Black "Akshat, Khamparia"]
[Result "1-0"]
[ECO "C47"]
[WhiteElo "2517"]
[BlackElo "2393"]
[Annotator "ChessBase"]
[PlyCount "89"]
[EventDate "2019.08.16"]
[EventType "tourn"]
[EventCountry "HUN"]
[SourceTitle "playchess.com"]
[Source "ChessBase"]
[SourceQuality "1"]
[TimeControl "40/5400+30:1800+30"]

1. e4 {[%emt 0:06:54]} e5 {[%emt 0:00:26]} 2. Nf3 {[%emt 0:00:08]} Nc6 {[%emt 0:00:05]} 3. Nc3 {[%emt 0:01:55]} Nf6 {[%emt 0:00:11]} 4. h3 {[%emt 0:00:59]} Bc5 {[%emt 0:02:39]} 5. Nxe5 {[%emt 0:06:44]} Nxe5 {[%emt 0:02:36]} 6. d4 {[%emt 0:00:05]} Bd6 {[%emt 0:01:33]} 7. f4 {[%emt 0:22:31]} Ng6 {[%emt 0:17:10]} 8. e5 {[%emt 0:04:14]} Be7 {[%emt 0:03:08]} 9. exf6 {[%emt 0:02:10]} Bxf6 {[%emt 0:00:08]} 10. Qe2+ {[%emt 0:02:19]} Ne7 {[%emt 0:13:47]} 11. Be3 {[%emt 0:04:38]} d5 {[%emt 0:06:08]} 12. g4 {[%emt 0:00:40]} Bh4+ {[%emt 0:01:41]} 13. Kd2 {[%emt 0:01:04]} O-O {[%emt 0:06:57]} 14. Rd1 {[%emt 0:01:39]} Re8 {[%emt 0:04:27]} 15. Bg2 {[%emt 0:04:05]} c6 {[%emt 0:07:38]} 16. Kc1 {[%emt 0:00:07]} b5 {[%emt 0:00:25]} 17. Kb1 {[%emt 0:02:12]} Qa5 {[%emt 0:05:07]} 18. Qd2 {[%emt 0:00:55]} b4 {[%emt 0:02:14]} 19. Ne2 {[%emt 0:00:18]} Ba6 {[%emt 0:05:55]} 20. Nc1 {[%emt 0:01:11]} Nc8 {[%emt 0:00:57]} 21. Bf2 {[%emt 0:04:11]} Be7 {[%emt 0:03:10]} 22. f5 {[%emt 0:07:04]} Nd6 {[%emt 0:01:16]} 23. Rhe1 {[%emt 0:01:48]} Nc4 {[%emt 0:01:45]} 24. Qf4 {[%emt 0:00:05]} Bd6 {[%emt 0:01:02]} 25. Qf3 {[%emt 0:00:04]} Qc7 {[%emt 0:01:35]} 26. Nb3 {[%emt 0:03:46]} Bb5 {[%emt 0:01:09]} 27. f6 {[%emt 0:08:45]} g6 {[%emt 0:00:47]} 28. Rxe8+ {[%emt 0:03:01]} Rxe8 {[%emt 0:00:01]} 29. Re1 {[%emt 0:00:07]} Rxe1+ {[%emt 0:01:01]} 30. Bxe1 {[%emt 0:00:04]} Bf4 {[%emt 0:02:19]} 31. Bxb4 {[%emt 0:02:28]} g5 {[%emt 0:00:51]} 32. Bf1 {[%emt 0:03:59]} Qc8 {[%emt 0:03:21]} 33. Bd3 {[%emt 0:02:10]} Qe6 {[%emt 0:00:26]} 34. a4 {[%emt 0:00:04]} Bxa4 {[%emt 0:01:47]} 35. Nc5 {[%emt 0:00:06]} Qxf6 {[%emt 0:00:58]} 36. Nxa4 {[%emt 0:03:26]} Qxd4 {[%emt 0:00:22]} 37. Qe2 {[%emt 0:01:30]} Ne5 {[%emt 0:02:50]} 38. Bc3 {[%emt 0:00:12]} Qg1+ {[%emt 0:00:20]} 39. Ka2 {[%emt 0:00:07]} d4 {[%emt 0:00:31]} 40. Bb4 {[%emt 0:00:00]} Qh1 {[%emt 0:00:00]} 41. Qe4 {[%emt 0:04:38]} Qxh3 {[%emt 0:00:51]} 42. Qf5 {[%emt 0:05:32]} Nxd3 {[%emt 0:01:49]} 43. Qc8+ {[%emt 0:00:13]} Kg7 {[%emt 0:00:06]} 44. Bf8+ {[%emt 0:00:08]} Kf6 {[%emt 0:00:35]} 45. Qf5# {[%emt 0:00:05]} 1-0